[Event "Lliga Catalana DH 2023"]
[Site "Catalonia"]
[Date "2023.01.24"]
[Round "2.2"]
[White "Prie, Eric"]
[Black "Campos Moreno, Javier B."]
[Result "0-1"]
[ECO "D00"]
[WhiteElo "2372"]
[BlackElo "2421"]
[Annotator "TA"]
[PlyCount "48"]
[EventDate "2023.01.24"]
[EventType "team-tourn"]
[EventCountry "ESP"]
[SourceTitle "playchess.com"]
[Source "ChessBase"]
[SourceQuality "1"]
[TimeControl "40/5400+30:1800+30"]

{[%evp 11,48,-5,0,0,11,18,20,22,18,22,49,44,56,41,57,39,30,0,0,0,0,-140,-106,-900,-899,-864,-816,-29979,-29980,-29991,-29992,-29992,-29993,-29993,-264,-29994,-29995,-29995,-29996]} 1. d4 {[%emt 0:00:10]} d5 {[%emt 0:00:15]} 2. Bf4 {[%emt 0:00:34]} c5 {[%emt 0:01:07]} 3. e3 {[%emt 0:00:40]} Nc6 {[%emt 0:00:32]} 4. c3 {[%emt 0:00:16]} Nf6 {[%emt 0:01:18]} 5. Nd2 {[%emt 0:00:28]} Bf5 {[%emt 0:02:32]} 6. Ngf3 {[%emt 0:00:13]} e6 $1 {[%emt 0:00:32] The main line 6...e6 scores better than 6...Qb6.} 7. Be2 {[%emt 0:00:15] D00: 1 d4 d5: Unusual lines.} h6 {[%emt 0:17:36]} 8. O-O {[%emt 0:20:26]} Qb6 {[%emt 0:19:09]} 9. Qa4 {[%emt 0:07:17] [#] The position is equal.} Be7 $146 {[%emt 0:04:24]} (9... Qxb2 10. Rab1 Bxb1 11. Rxb1 Qxc3 12. Rxb7 cxd4 13. Rc7 $18) (9... Rc8 {simplifies} 10. Ne5 Be7 11. dxc5 Bxc5 12. Nxc6 bxc6 13. Nb3 Ne4) ({Predecessor:} 9... Rc8 10. dxc5 Bxc5 11. Nb3 O-O 12. Nxc5 Qxc5 13. Nd4 Bg4 14. Bxg4 Nxg4 15. Nxc6 Qxc6 {1-0 Alekseenko,K (2609)-Yuffa,D (2521) Moscow Aeroflot op-A 17th 2018 (4)}) 10. dxc5 {[%emt 0:03:32]} Qxb2 {[%emt 0:09:15] [#]} 11. Rab1 $1 {[%emt 0:00:56][%mdl 64] Skewer} Bxb1 {[%emt 0:12:40]} 12. Rxb1 {[%emt 0:00:19]} Qxc3 {[%emt 0:01:42] And now ...0-0 would win.} 13. Rxb7 {[%emt 0:00:29]} Rc8 {[%emt 0:01:58] aiming for ...0-0.} (13... Qxc5 $2 14. Nb3 Qc2 15. Nfd4 Qb1+ 16. Bf1 $18) 14. Nd4 {[%emt 0:31:54]} O-O {[%emt 0:03:38]} (14... Qxc5 $2 15. Nxc6 Qc1+ 16. Nf1 Rxc6 17. Rb8+ (17. Qxa7 O-O $11) 17... Bd8 18. Rc8 $18 (18. Qxa7 O-O $19)) 15. Nxc6 {[%emt 0:00:39]} Rxc6 {[%emt 0:00:37]} (15... Bxc5 {with more complications.} 16. Nf1 Ne4 17. Bg3 Ba3) 16. Qxc6 {[%emt 0:05:48]} (16. Nf1 $1 $11 {was the only way to keep the balance.} Rxc5 17. Rxe7) 16... Qxd2 $17 {[%emt 0:00:15]} 17. Rxe7 $2 {[%emt 0:02:14][%mdl 8192] This costs White the game.} (17. Qb5 $17 Bxc5 18. Qb2 Qe1+ 19. Bf1) 17... Qxe2 $19 {[%emt 0:00:26][%cal Re2e1]} 18. h3 {[%emt 0:00:14]} Ne4 {[%emt 0:06:34][%cal Bf6e4,Be4d2,Bd2f1,Bf1g3,Bg3e2][%mdl 32]} ({Weaker is} 18... Qxa2 19. Bg3 $11) 19. f3 {[%emt 0:00:13]} Nd2 {[%emt 0:07:13]} 20. Re8 {[%emt 0:00:59]} Qe1+ {[%emt 0:00:45]} 21. Kh2 {[%emt 0:00:11]} Nf1+ {[%emt 0:00:19]} 22. Kg1 {[%emt 0:01:11]} Ng3+ {[%emt 0:00:51]} 23. Kh2 {[%emt 0:00:57] [#]} Ne2 $1 {[%emt 0:00:28][%csl Ge2][%cal Re1g1]} 24. Rxf8+ {[%emt 0:01:01]} Kh7 {[%emt 0:00:12] An entertaining game by Campos Moreno.   Weighted Error Value: White=0.91/Black=0.03 (flawless)} 0-1

[Event "Lliga Catalana DH 2023"]
[Site "Catalonia"]
[Date "2023.01.24"]
[Round "2.3"]
[White "Lazaro Pujol, Abel"]
[Black "Vidal Zamora, Alex"]
[Result "0-1"]
[ECO "C11"]
[WhiteElo "2348"]
[BlackElo "2399"]
[Annotator "TA"]
[PlyCount "142"]
[EventDate "2023.01.24"]
[EventType "team-tourn"]
[EventCountry "ESP"]
[SourceTitle "playchess.com"]
[Source "ChessBase"]
[SourceQuality "1"]
[TimeControl "40/5400+30:1800+30"]

{[%evp 13,142,-3,0,0,0,5,2,0,0,-14,-10,-14,0,-13,-18,-18,-7,-9,71,74,76,79,79,94,88,87,93,81,143,83,148,93,100,27,17,25,19,0,0,0,0,0,0,0,0,0,6,6,6,9,9,6,7,13,21,30,20,0,0,0,0,0,10,-144,-144,-144,-144,-154,-150,-164,-163,-172,-160,-164,-168,-212,-206,-186,-202,-191,-172,-229,-208,-233,-233,-270,-275,-290,-284,-270,-239,-348,-347,-450,-437,-784,-771,-742,-742,-1236,-588,-1446,-934,-1316,-1375,-1235,-892,-1332,-869,-1814,-1546,-1471,-1443,-1288,-1220,-858,-720,-1149,-1121,-830,-741,-12486,-1435,-12830,-12831,-12814,-4322,-12837,-12837,-12842,-12842]} 1. e4 {[%emt 0:00:06]} e6 {[%emt 0:00:47]} 2. d4 {[%emt 0:00:18]} d5 {[%emt 0:00:30]} 3. Nc3 {[%emt 0:00:12]} Nf6 {[%emt 0:00:48]} 4. e5 {[%emt 0:00:32]} Nfd7 {[%emt 0:00:28]} 5. Nce2 {[%emt 0:00:45]} c5 {[%emt 0:02:46]} 6. c3 {[%emt 0:00:10]} Nc6 {[%emt 0:01:44]} 7. Nf3 {[%emt 0:00:20]} b5 {[%emt 0:17:21]} 8. a3 {[%emt 0:23:07] C11: French: Classical System: 4 e5 and 4 Bg5 dxe4.} cxd4 {[%emt 0:07:55]} 9. cxd4 {[%emt 0:02:21]} b4 {[%emt 0:03:07]} 10. axb4 {[%emt 0:08:40] [#] The position is equal.} Bxb4+ $146 {[%emt 0:03:45]} ({Predecessor:} 10... Nxb4 11. Nc3 a5 12. Be2 Ba6 13. O-O Be7 14. Na2 Nc6 15. Bd2 Qb6 16. Bc3 O-O {1-0 Diaz Diaz,H (1786)-Lopez Grana,C (1641) ESP-chT U16 Aviles 2008 (4.3)}) 11. Nc3 {[%emt 0:01:40]} Qb6 {[%emt 0:04:10]} 12. Be3 {[%emt 0:04:58]} Ba5 {[%emt 0:03:30]} 13. Rb1 {[%emt 0:10:06]} Rb8 {[%emt 0:02:19] [#] Hoping for ...Bxc3+.} 14. Bd3 {[%emt 0:10:05]} Nb4 {[%emt 0:07:54]} 15. Be2 {[%emt 0:01:33]} Na2 {[%emt 0:04:58]} (15... Ba6 $11 {remains equal.}) 16. Nd2 $16 {[%emt 0:01:24]} Nxc3 {[%emt 0:08:32]} 17. bxc3 {[%emt 0:00:09]} Qc7 {[%emt 0:00:52]} 18. Rc1 {[%emt 0:09:18]} O-O {[%emt 0:02:41]} 19. O-O {[%emt 0:00:49]} Bb7 {[%emt 0:08:53][%cal Ob7c6]} 20. Bd3 {[%emt 0:02:10]} g6 {[%emt 0:01:13]} (20... Rfc8 $142) 21. Qg4 {[%emt 0:01:38]} (21. c4 $142) 21... Qc6 {[%emt 0:02:10]} ({Black should try} 21... Bc6) 22. h4 {[%emt 0:02:58]} (22. Nf3 $142) 22... Ba6 {[%emt 0:01:03]} 23. Qe2 {[%emt 0:09:22]} (23. Bxa6 $16 Qxa6 24. Ra1) 23... Bxd3 $11 {[%emt 0:00:35]} 24. Qxd3 {[%emt 0:00:02]} Qb5 {[%emt 0:01:50]} 25. Qxb5 {[%emt 0:08:21]} Rxb5 {[%emt 0:00:02]} 26. Rb1 {[%emt 0:01:26]} Rfb8 {[%emt 0:01:33]} 27. Rxb5 {[%emt 0:00:02]} Rxb5 {[%emt 0:00:11]} 28. Ra1 {[%emt 0:00:54]} Nb6 {[%emt 0:00:49]} 29. Kf1 {[%emt 0:00:51]} Kg7 {[%emt 0:02:54]} 30. Ra3 {[%emt 0:00:36]} h6 {[%emt 0:02:03]} 31. Ke2 {[%emt 0:00:25]} Nc8 {[%emt 0:01:05]} 32. Kd3 {[%emt 0:00:26]} Bd8 {[%emt 0:00:47]} 33. g3 {[%emt 0:00:28]} Bb6 {[%emt 0:01:15]} 34. c4 {[%emt 0:00:42]} dxc4+ {[%emt 0:00:09]} 35. Kxc4 {[%emt 0:00:32]} Rd5 {[%emt 0:00:17]} 36. Ne4 {[%emt 0:00:30]} Ne7 {[%emt 0:00:21]} 37. Nd6 {[%emt 0:00:32]} Nf5 {[%emt 0:02:11]} 38. Rd3 $2 {[%emt 0:00:22]} (38. Nxf5+ $11 gxf5 39. h5) 38... Nxd6+ $17 {[%emt 0:00:25] White is on the road to losing.} 39. exd6 {[%emt 0:00:19]} Rxd6 {[%emt 0:00:04][%mdl 4096] Endgame KRB-KRB} 40. Rd1 {[%emt 0:00:48]} Rd5 {[%emt 0:00:15]} 41. Ra1 {[%emt 0:30:30]} h5 {[%emt 0:30:20]} 42. Ra4 {[%emt 0:00:22]} Kf8 {[%emt 0:00:27]} 43. Kc3 {[%emt 0:00:30]} Ke8 {[%emt 0:00:30]} 44. Rc4 {[%emt 0:00:28]} Kd7 {[%emt 0:00:17]} 45. Bf4 {[%emt 0:00:39]} Rb5 {[%emt 0:00:31]} 46. Kc2 {[%emt 0:00:30]} Ra5 {[%emt 0:00:34] ...Ra2+ would be deadly.} 47. Kb2 {[%emt 0:00:25]} (47. Be3 $142) 47... Bd8 {[%emt 0:00:22]} 48. Be5 {[%emt 0:00:26]} Ra6 {[%emt 0:00:34]} 49. Bf4 {[%emt 0:00:39]} Rb6+ {[%emt 0:00:28]} 50. Ka2 {[%emt 0:00:22]} Rb5 {[%emt 0:00:45]} 51. Be5 {[%emt 0:00:24]} Bb6 {[%emt 0:00:20]} 52. Bf4 {[%emt 0:00:36]} (52. Ka3 $142) 52... Rd5 $19 {[%emt 0:00:38]} 53. Be3 {[%emt 0:00:39]} e5 {[%emt 0:00:38] Black is clearly winning.} 54. dxe5 {[%emt 0:00:27]} (54. Rc1 $142 exd4 55. Bf4) 54... Bxe3 {[%emt 0:00:09]} ({And not} 54... Rxe5 55. Bxb6 Re2+ 56. Ka3 axb6 57. Rf4 $17) 55. fxe3 {[%emt 0:00:03]} Rxe5 {[%emt 0:01:43] KR-KR} 56. e4 {[%emt 0:00:59]} Rb5 {[%emt 0:00:13]} 57. Rc3 {[%emt 0:00:32]} Kd6 {[%emt 0:00:49]} 58. Rf3 {[%emt 0:00:24]} Ke6 {[%emt 0:01:07]} 59. Ka3 {[%emt 0:00:24]} Rb1 {[%emt 0:00:43]} 60. Ka2 {[%emt 0:00:29]} Rb4 {[%emt 0:00:46]} 61. Ka3 {[%emt 0:00:34]} a5 {[%emt 0:00:29][%cal Ba7a5,Ba5a4,Ba4a3,Ba3a2][%mdl 32]} 62. Rf4 {[%emt 0:00:38]} Rd4 {[%emt 0:00:17]} 63. Kb2 {[%emt 0:00:24]} Rd7 {[%emt 0:01:55]} 64. Kc3 {[%emt 0:00:37]} Rb7 {[%emt 0:00:37]} 65. Rf1 {[%emt 0:00:31]} a4 {[%emt 0:00:16] [#] White must now prevent ...a3.} 66. Kd4 {[%emt 0:00:24]} a3 {[%emt 0:00:28]} 67. Rc1 {[%emt 0:00:26]} Rb4+ {[%emt 0:00:54]} (67... Rd7+ $142 68. Ke3 a2) 68. Ke3 {[%emt 0:00:25]} Ra4 {[%emt 0:00:16]} 69. Ra1 {[%emt 0:00:40]} Ke5 {[%emt 0:00:27]} (69... a2 $142 70. Kd2 Ke5) 70. Kf3 {[%emt 0:00:25]} a2 {[%emt 0:00:07]} ({Stronger than} 70... Rxe4 71. Rxa3 Rd4 72. Ke3 $17) 71. g4 {[%emt 0:00:21]} Ra3+ {[%emt 0:00:07][%mdl 64] Deflection.   Weighted Error Value: White=0.57/Black=0.26 (precise)} ({Worse is} 71... Rxe4 72. gxh5 gxh5 73. Rxa2 Rxh4 74. Re2+ Kf5 75. Re7 $17) 0-1

[Event "Lliga Catalana DH 2023"]
[Site "Catalonia"]
[Date "2023.01.28"]
[Round "2.3"]
[White "Mestre Bellido, Hector"]
[Black "Asis Gargatagli, Hipolito"]
[Result "0-1"]
[ECO "A15"]
[WhiteElo "2295"]
[BlackElo "2501"]
[Annotator "TA"]
[PlyCount "78"]
[EventDate "2023.01.24"]
[EventType "team-tourn"]
[EventCountry "ESP"]
[SourceTitle "playchess.com"]
[Source "ChessBase"]
[SourceQuality "1"]
[TimeControl "40/5400+30:1800+30"]

{[%evp 15,78,0,0,0,1,0,0,-16,8,0,8,0,22,20,22,0,6,0,7,0,0,0,0,-120,-52,-64,-71,-78,0,0,0,-70,0,-88,-73,-214,-226,-255,-249,-261,-262,-260,-249,-268,-262,-251,-249,-266,-284,-282,-214,-283,-280,-287,-279,-308,-298,-487,-483,-478,-477,-879,-585,-1654,-1589]} 1. Nf3 Nf6 2. g3 g6 3. b3 Bg7 4. Bb2 d6 5. Bg2 e5 6. c4 O-O 7. O-O c6 8. d3 Re8 9. Nbd2 {A15: English Opening: 1...Nf6.} Nbd7 10. Rc1 a5 {[#]} 11. Ng5 $146 {The position is equal.} ({Predecessor:} 11. a3 Qb6 12. Nb1 Nc5 13. Nfd2 Ne6 14. Nc3 Bd7 15. Nce4 Nxe4 16. Nxe4 Qc7 17. e3 {0-1 Dew,B (2002)-Sumaneev,D (2450) Titled Tuesday intern op 22nd Feb Early blitz 2022 (11)}) 11... Nh5 12. Nge4 Bf8 13. Ba3 Nc5 14. Nxc5 dxc5 15. Ne4 b6 16. Nc3 Re6 17. Qd2 Ra7 18. Rcd1 Rd7 19. f4 (19. Bb2 $11) 19... Bh6 (19... exf4 $17 {Strongly threatening ...Bg7.} 20. g4 Nf6 21. Qxf4 h5 22. gxh5 Nxh5) 20. e3 $15 exf4 21. gxf4 Red6 {[%cal Rd6d3]} (21... Bg7 $5 {[%cal Re6e3]} 22. Ne2 Qh4 $15) 22. Qe2 $1 {[%cal Od3d4]} Re6 {[%cal Oh5f4] [#] ...Nxf4! is the strong threat.} 23. Qd2 Red6 ({Black should try} 23... Bg7 $15 24. Rf3 Red6) 24. Qc2 (24. Qe2 $1 $11) 24... Rxd3 $17 25. Rxd3 {Now White is beyond hope.} (25. Bc1 $17) 25... Rxd3 $19 26. Nd5 Bf5 27. e4 Rd4 28. exf5 cxd5 29. fxg6 hxg6 ({Much less strong is} 29... Bxf4 30. gxf7+ (30. Bxd5 Qg5+ 31. Qg2 Bxh2+ {[%mdl 64] Decoy} 32. Kxh2 Rh4+ 33. Kg1 Rg4 $17) (30. gxh7+ Kh8 $11) 30... Kf8 31. Qe2 $18 (31. cxd5 $2 Be3+ 32. Kh1 Rh4 $19) (31. Qxh7 Qg5 $16) (31. Bxd5 $2 Rd2 $19)) 30. Bb2 Rxf4 31. cxd5 Rxf1+ 32. Kxf1 Bg7 33. Bxg7 Nxg7 {[%mdl 4096] Endgame KQB-KQN} 34. Bf3 Qf6 35. Qd3 Nf5 36. Ke1 $2 (36. Kg1) 36... Qe5+ {Black is clearly winning.} 37. Be2 Nd4 (37... Qxh2 $2 {perishes.} 38. Qe4 $19) 38. Kd1 (38. h4 $142) 38... Qxd5 39. h3 {[#]} Nxe2 $1 {Weighted Error Value: White=0.58/Black=0.27 (precise)} 0-1

[Event "Lliga Catalana DH 2023"]
[Site "Catalonia"]
[Date "2023.01.28"]
[Round "2.4"]
[White "Delorme, Axel"]
[Black "Beltran Rueda, Santiago"]
[Result "0-1"]
[ECO "C42"]
[WhiteElo "2470"]
[BlackElo "2286"]
[Annotator "TA"]
[PlyCount "79"]
[EventDate "2023.01.24"]
[EventType "team-tourn"]
[EventCountry "ESP"]
[SourceTitle "playchess.com"]
[Source "ChessBase"]
[SourceQuality "1"]
[TimeControl "40/5400+30:1800+30"]

{[%evp 9,79,27,21,19,16,20,22,10,14,19,36,29,37,29,47,44,43,46,51,39,61,56,81,62,73,75,97,93,105,89,105,76,108,96,127,136,135,79,119,115,152,107,118,101,114,113,148,129,136,39,75,74,83,82,70,82,151,96,170,183,156,175,232,222,277,261,266,246,325,289,396,337]} 1. e4 e5 2. Nf3 Nf6 3. Nxe5 d6 4. Nf3 Nxe4 5. Bd3 Nf6 6. O-O {C42: Petroff Defence: 3 Nxe5 and unusual White 3rd moves.} Be7 7. c3 {7.Re1 is more advanced technology.} O-O 8. Bc2 {The position is equal.} Re8 9. d4 Nbd7 10. Re1 Bf8 11. Rxe8 {[#]} Nxe8 $146 ({Predecessor:} 11... Qxe8 12. c4 d5 13. c5 c6 14. Nc3 b6 15. cxb6 axb6 16. Bf4 Bb4 17. h3 Nf8 {1-0 Bortnyk,O (2604)-Obregon,C (2525) Speed Chess GP2 blitz 2021 (2)}) 12. c4 g6 13. Nc3 Bg7 14. Bg5 Nef6 15. h3 h6 16. Be3 Nb6 17. b3 c6 18. Qd2 Kh7 19. a4 a5 20. Re1 Be6 21. Ne2 d5 22. Nf4 Bd7 23. Bd3 (23. Ne5 $142 Be8 24. c5) 23... Nc8 24. Ne5 Be8 25. f3 Ne7 26. Bf2 Kg8 27. c5 Nd7 28. Bc2 Nf8 29. b4 (29. g4 $16) 29... f6 30. Ned3 {aiming for Qe2.} Bf7 31. g4 g5 32. Ng2 Bg6 (32... axb4 $142 33. f4 (33. Nxb4 Bg6 $14) (33. Qxb4 Qc7 $16) 33... b3 34. Bxb3 Qc7) 33. bxa5 (33. Qe2 $142 Nc8 34. b5) 33... Qd7 (33... f5 $16) 34. f4 $36 {[%mdl 2048] Keeping Black busy.} Be4 35. f5 Qc7 (35... Nxf5 {is a better defense.} 36. gxf5 Bxf5) 36. Rb1 Nd7 37. Qb4 Ra7 38. Qe1 Bf8 39. Ne3 Nc8 40. Nf1 {[%mdl 32768] Weighted Error Value: White=0.13 (very precise) /Black=0.28 (precise) . Loss on time!?} ({Don't do} 40. Bg3 Qxa5 41. Qxa5 Rxa5 42. Rxb7 Ra7 $18) 0-1

[Event "Lliga Catalana DH 2023"]
[Site "Catalonia"]
[Date "2023.01.24"]
[Round "2.4"]
[White "Siebrecht, Sebastian"]
[Black "Gonzalez Rodriguez, Jorge A."]
[Result "1-0"]
[ECO "B44"]
[WhiteElo "2370"]
[BlackElo "2229"]
[Annotator "TA"]
[PlyCount "73"]
[EventDate "2023.01.24"]
[EventType "team-tourn"]
[EventCountry "ESP"]
[SourceTitle "playchess.com"]
[Source "ChessBase"]
[SourceQuality "1"]
[TimeControl "40/5400+30:1800+30"]

{[%evp 14,73,20,0,8,9,13,0,0,-16,-16,-46,-52,-54,-20,-20,-7,-8,25,27,22,-41,-45,-70,0,0,0,0,144,66,62,50,53,56,83,73,76,68,147,133,122,131,152,147,201,137,456,450,427,395,400,0,0,0,293,300,1615,1374,29991,29991,29991,29992]} 1. c4 {[%emt 0:00:10]} Nf6 {[%emt 0:00:10]} 2. Nc3 {[%emt 0:00:06]} e6 {[%emt 0:00:36]} 3. e4 {[%emt 0:00:16]} c5 {[%emt 0:01:31]} 4. Nf3 {[%emt 0:04:38]} Nc6 {[%emt 0:00:38]} 5. d4 {[%emt 0:01:05]} cxd4 {[%emt 0:01:32]} 6. Nxd4 {[%emt 0:00:02]} Bb4 {[%emt 0:07:58]} 7. Nxc6 {[%emt 0:02:56]} bxc6 {[%emt 0:10:24]} 8. Qc2 {[%emt 0:06:38]} e5 {[%emt 0:01:23] B44: Sicilian: Taimanov: 5 Nb5.} 9. Be2 {[%emt 0:01:15] [#]} Bc5 $146 {[%emt 0:10:53]} ({Predecessor:} 9... O-O 10. O-O Bc5 11. Na4 Bd4 12. c5 d6 13. cxd6 Qxd6 14. Be3 Bxe3 15. fxe3 Be6 16. Rad1 {1-0 Vaibhav,S (2600)-Suvorov,A (2313) Titled Tuesday intern op 01st Sept blitz 2020 (7)}) 10. Bg5 {[%emt 0:08:44]} h6 {[%emt 0:01:21] The position is equal.} 11. Bh4 {[%emt 0:00:39]} d6 {[%emt 0:02:24]} 12. a3 {[%emt 0:06:55]} Bd4 {[%emt 0:09:45]} 13. Bd3 {[%emt 0:10:39]} g5 {[%emt 0:02:22]} 14. Bg3 {[%emt 0:00:20]} Nh5 {[%emt 0:01:04][%cal Bf6h5,Bh5g3,Bg3h1][%mdl 32]} 15. Ne2 {[%emt 0:00:27]} Bb6 {[%emt 0:02:00] [#]} 16. c5 $1 {[%emt 0:06:40]} Nxg3 {[%emt 0:05:05]} 17. cxb6 {[%emt 0:10:48]} (17. hxg3 $11 dxc5 18. O-O-O) 17... Nxh1 $15 {[%emt 0:02:50]} 18. Qxc6+ {[%emt 0:00:06]} Ke7 {[%emt 0:02:47]} (18... Bd7 $15 19. Qxd6 f6) 19. b7 $11 {[%emt 0:02:15]} Rb8 {[%emt 0:29:00]} 20. bxc8=Q {[%emt 0:00:07]} Rxc8 {[%emt 0:00:32] [#]} (20... Qxc8 $11 {remains equal.} 21. Qxc8 Rhxc8) 21. Qb7+ {[%emt 0:00:06]} (21. Qa6 $1 $16) 21... Rc7 $1 $14 {[%emt 0:02:00]} 22. Qa6 {[%emt 0:00:07][%mdl 1024] White has compensation.} Qb8 {[%emt 0:00:19]} 23. b4 {[%emt 0:12:20]} Rhc8 {[%emt 0:00:22]} 24. Kf1 {[%emt 0:03:54][%cal Be1f1,Bf1g1,Bg1f2][%mdl 32]} Rc6 {[%emt 0:04:02] [#]} 25. Qa5 {[%emt 0:04:40]} a6 {[%emt 0:00:02]} 26. Kg1 $16 {[%emt 0:05:52][%cal Od3a6] Bxa6! would be deadly.} (26. Bxa6 $2 Qa7 $19) 26... Nxf2 {[%emt 0:00:09]} 27. Kxf2 {[%emt 0:00:05]} Qa7+ {[%emt 0:00:05]} 28. Kf1 {[%emt 0:02:22] White is more active.} Qe3 {[%emt 0:00:25]} (28... d5 $16 29. Qxd5 Qc7) 29. Rd1 {[%emt 0:01:44]} (29. Bxa6 Ra8 30. b5 Rc2 $11) 29... f5 $2 {[%emt 0:01:54][%mdl 8192]} (29... Kf8 $16) 30. exf5 $18 {[%emt 0:02:19][%cal Be4f5,Bf5f6,Bf6f7][%mdl 32] Hoping for Qd5.} (30. Bxa6 Rf8 31. Qd5 fxe4+ 32. Ke1 Qf2+ 33. Kd2 Qxg2 $14) 30... e4 {[%emt 0:00:22]} 31. Bxa6 {[%emt 0:02:01]} Ra8 {[%emt 0:00:48]} 32. b5 $2 {[%emt 0:02:57]} (32. Qd5 $1 $18 {[%cal Rd5c6]} Raxa6 33. Rd4 (33. Qe6+ Kd8 $11) 33... Rc1+ 34. Nxc1 Qxc1+ 35. Ke2 Qc2+ 36. Rd2) 32... Rc5 $11 {[%emt 0:00:10]} (32... Rc2 $2 33. Qe1 $18) 33. f6+ {[%emt 0:01:31]} (33. Ke1 $5 Rc2 $8 34. Rd2 Rc1+ 35. Rd1 $11) 33... Kf7 $2 {[%emt 0:00:53][%mdl 8192]} (33... Kxf6 $11 34. Qb4 (34. Rxd6+ $2 Ke7 $19) 34... Rf5+ 35. Ke1 Qf2+ 36. Kd2 Rd5+ 37. Kc1 Qe3+ 38. Rd2 Rxd2 39. Qxd2 Qxa3+ 40. Kc2 Qa2+ 41. Kc3 Qa5+ 42. Kc2 Qa2+ 43. Kc3 Qa5+ 44. Kc2 Qa2+) 34. Rxd6 $18 {[%emt 0:00:32] Strongly threatening Qb4.} (34. Nd4 Qf4+ 35. Kg1 Qe3+ 36. Kf1 (36. Kh1 $2 Rc1 $19) 36... Qf4+ 37. Kg1 Qe3+ 38. Kf1 $11 (38. Kh1 $2 Rc1 $19)) 34... Rc2 $2 {[%emt 0:01:03]} (34... Ra7 35. Qd2 Rf5+ 36. Ke1 Qxa3) 35. b6 {[%emt 0:00:30] White threatens Qd5+ and mate.} ({And not} 35. Qe1 Rxe2 36. Qxe2 Qf4+ 37. Kg1 (37. Ke1 Qxd6 38. Qh5+ Ke6 $11) 37... Qxd6 38. Qh5+ (38. Qxe4 Qc5+ 39. Kf1 Rf8 $17) 38... Ke6 39. Qh3+ Ke5 40. Qg3+ Ke6 41. Qh3+ Kf7 42. Qh5+ Ke6 43. Qh3+ $11) 35... Rxe2 {[%emt 0:00:25]} 36. Qd5+ {[%emt 0:00:09]} Kg6 {[%emt 0:00:25]} 37. f7+ {[%emt 0:00:54] A cool game by Siebrecht.   Weighted Error Value: White=0.29 (precise) /Black=0.62} (37. Qxa8 $2 Qf2#) 1-0

[Event "Lliga Catalana DH 2023"]
[Site "Catalonia"]
[Date "2023.01.28"]
[Round "2.5"]
[White "Garrido Fernandez, Daniel"]
[Black "Rizouk, Aimen"]
[Result "1/2-1/2"]
[ECO "C47"]
[WhiteElo "2281"]
[BlackElo "2454"]
[Annotator "TA"]
[PlyCount "111"]
[EventDate "2023.01.24"]
[EventType "team-tourn"]
[EventCountry "ESP"]
[SourceTitle "playchess.com"]
[Source "ChessBase"]
[SourceQuality "1"]
[TimeControl "40/5400+30:1800+30"]

{[%evp 17,111,2,4,0,10,5,8,16,22,0,0,0,-13,-47,-44,-62,-61,-60,-52,-66,-48,-77,0,5,5,-12,-5,-63,-81,-89,-77,-96,-88,-89,-94,-93,-88,-87,-68,-72,-72,-80,-77,-78,-31,-53,-62,-104,-97,-108,-105,-106,-106,-120,-120,-120,-120,-120,-119,-127,-127,-127,-87,-127,-108,-163,-142,-316,-114,-132,-135,-140,-172,-175,-158,-146,-139,-151,-100,-91,0,0,0,0,0,0,0,0,0,0,0,0,0,0,0,0]} 1. e4 e5 2. Nf3 Nc6 3. Nc3 Nf6 4. d4 exd4 5. Nxd4 Bb4 6. Nxc6 bxc6 7. Bd3 d5 8. exd5 cxd5 9. O-O O-O 10. h3 {Prevents Bg4. C47: Scotch Four Knights and Four Knights with 4 g3.} Rb8 11. Qf3 Bb7 {11...Be6 is setting a new trend.} 12. Bg5 Be7 {And now ...d4 would win.} 13. Qf5 {Strongly threatening Bxf6.} (13. Rfe1 $5 {[%cal Rc3b5]}) 13... Bc8 14. Qe5 Be6 {[#]} 15. Rad1 $146 ({Predecessor:} 15. b3 Nd7 16. Bxe7 Nxe5 17. Bxd8 Rfxd8 18. Rad1 c5 19. Be2 {½-½ Abdusattorov,N (2546)-Ragger,M (2687) Wch Blitz St Petersburg 2018 (20)}) 15... h6 (15... Rxb2 16. Nxd5 Qxd5 17. Bxh7+ (17. Qxb2 $2 Qxg5 18. Qc1 Qh4 $19) 17... Nxh7 18. Rxd5 Bxg5 19. Qxb2 $16) 16. Bh4 Rb4 (16... Rxb2 17. Nxd5 Rxa2 18. Nxc7 $16) 17. f4 c6 (17... Rxb2 18. Nxd5 Nxd5 19. Bxe7 (19. Qxb2 $2 Bxh4 20. c4 Qf6 $19) 19... Qxe7 20. Qxb2 $11) 18. Kh1 Re8 {[%cal Of6g4]} (18... Rxb2 19. Nxd5 Nxd5 20. Bxe7 (20. Qxb2 $2 Bxh4 21. c4 Ne3 $19) 20... Qxe7 21. Qxb2 $11) 19. Rde1 Qc8 ({Don't do} 19... Rxb2 20. Nxd5 Nxd5 21. Bxe7 $16 (21. Qxb2 $2 Bxh4 22. Re4 Bf6 $19)) (19... Bd7 $17 {White must now prevent ...Ne4.} 20. a3 Ne4 21. Qxe7 (21. axb4 $2 Bxh4 {[%mdl 64] Discovered Attack} 22. Qd4 Bxe1 $19) 21... Rxe7 22. axb4 Nf6) 20. a3 $11 Rb8 ({Much less strong is} 20... Rxb2 21. f5 Bd7 22. Nxd5 Nxd5 23. Bxe7 $16) 21. f5 Bd7 22. Qg3 (22. Qd4 $11) 22... Qd8 $15 23. b3 Nh5 {[%mdl 64] Discovered Attack} (23... Bxa3 $2 24. Rxe8+ Bxe8 25. Bxf6 Qxf6 26. Qxb8 $18) 24. Qg4 Bxh4 25. Rxe8+ Bxe8 26. Qxh5 Bf6 27. Ne2 {[%cal Bc3e2,Be2f4,Bf4h5][%mdl 32]} Qe7 28. Nf4 Qxa3 29. Qf3 Qd6 30. Nh5 Rb7 (30... a5 $17) 31. Qg4 {[%cal Oh5g7]} Kf8 (31... Bd7 {simplifies} 32. Nxf6+ Qxf6 33. Qa4 c5) 32. Re1 Re7 33. Rxe7 Qxe7 34. Nxf6 Qxf6 $17 {[%mdl 4096] Endgame KQB-KQB} 35. Qb4+ Qe7 36. Qb8 f6 37. Qc8 Kf7 38. Qa8 Qe1+ 39. Kh2 Qe5+ 40. Kh1 Qc7 41. b4 (41. Be2 $17 Ke7 42. Bd3) 41... Qe7 42. b5 $2 (42. g3 $17) 42... Qe1+ $2 (42... cxb5 $19 {has better winning chances. Hoping for ...b4.} 43. Qxd5+ Kf8) 43. Kh2 Qe5+ 44. Kh1 cxb5 45. Qxa7+ Kg8 46. Qb7 d4 47. Be4 {[#]} Kh7 (47... Bf7 $142 $1 48. Bd3 Bc4 49. Bxc4+ bxc4 50. Qc8+ Kh7 51. Qxc4 Qxf5 52. Qxd4 Qxc2) 48. Bd5 {[#]} h5 (48... Qxf5 $2 49. Be4 $18) ({Black should play} 48... Qe3 $1 $17 {[%cal Re3c1] aiming for ...Qc1+.} 49. Qa8 d3 50. cxd3 Bf7 51. Bxf7 Qc1+ 52. Kh2 Qc7+ 53. Kh1 Qxf7) 49. Be6 $11 {The position is equal.} Qc5 50. Qa8 Qc6 51. Qd8 Kh6 52. Qe7 Qxc2 {( -> ...Bc6)} 53. Qxe8 {[%csl Gf5][%cal Re8g6] Active counter play!} Qc1+ 54. Kh2 {[%csl Gf5][%cal Re8g6]} Qf4+ 55. Kg1 {[%csl Gf5][%cal Re8g6]} Qc1+ 56. Kh2 {Black had all chances to win.   Weighted Error Value: White=0.14 (very precise) /Black=0.14 (very precise)} 1/2-1/2